Cogmind - Beta 15 @@@ ROGUE MODE // 2025.09.25 @ 07:42:27 Player: Kotyk77 Result: Destroyed by P-60 Hacker with Shock Rifle Performance ------------- Evolutions (4) 2000 Regions Visited (10) 2000 Robots Destroyed (77) 385 Value Destroyed (1781) 1781 Prototype IDs (32) 640 Alien Tech Used (0) 0 Bonus (883) 883 TOTAL SCORE: 7689 Bonus ------- High Alert Combat Kills 77 Follower Combat Kills 506 Aligned with FarCom 300 Cogmind --------- Core Integrity 0/850 Matter 0/300 Energy 100/100 System Corruption 14% Temperature Cool (0) Movement Flying (35) Location -6/Factory Parts ------- > --- POWER (2) -------- (None) > --- PROPULSION (6) --- Cesium-ion Thruster > --- UTILITY (5) ------ Advanced Signal Interpreter Advanced ECM Suite System Guard > --- WEAPON (2) ------- (None) > --- INVENTORY (5) ---- F-cell Engine Xenon Bombardment Thruster Drone Bay (0/2) Autogun Powered Hammer Peak State ------------ > --- POWER ------------ Heavy Ion Engine Cooled Ion Engine > --- PROPULSION ------- Armored Treads Armored Treads Armored Treads Armored Treads Armored Treads Armored Treads > --- UTILITY ---------- Huge Storage Unit Advanced Visual Processing Unit Improved Signal Interpreter Transmission Jammer Drone Bay > --- WEAPON ----------- Heavy Machine Gun Longsword +1 > --- INVENTORY -------- Micro Nuclear Core Armored Treads Armored Treads Improved Medium Treads Gravmag System Gravmag System Gravmag System Gravmag System Gravmag System Gravmag System Advanced Weight Redist. System Advanced Weight Redist. System Advanced Terrain Scan Processor Improved Melee Analysis Suite Advanced ECM Suite Improved Light Armor Plating Improved Light Armor Plating Component Analysis Suite Dynamic Insulation System System Guard Enhanced Autogun Enhanced Autogun Magnetic Acceleration Cannon Advanced EMP Blaster Heavy Rocket Launcher [Rating: 62] Favorites ----------- Power Cooled Ion Engine Engine Cooled Ion Engine Power Core Light Nuclear Core Propulsion Armored Treads Treads Armored Treads Leg Aluminum Leg Hover Unit Gravmag System Flight Unit VTOL Module Utility Advanced Visual Processing Unit Device Transmission Jammer Storage Huge Storage Unit Processor Advanced Visual Processing Unit Hackware Hacking Suite Protection Light Armor Plating Weapon Longsword +1 Energy Gun EM Pulse Gun Energy Cannon Heavy Plasma Cannon Ballistic Gun Enhanced Autogun Launcher Grenade Launcher Impact Weapon Hammer Slashing Weapon Longsword +1 Build | -11 -10 -10 -10 -9 -8 -8 -7 -6 -6 -6 ------- Run | Yrd Mat Min Exi Min Mat Sto Fac Fac Was Fac Slots Evolved 8 | . . . . . 4 . 2 2 . . Power 1 | . . . . . . . . 1 . . Propulsion 4 | . . . . . 2 . 1 1 . . Utility 3 | . . . . . 2 . 1 . . . Weapon . | . . . . . . . . . . . Parts Attached 93 | 6 5 5 2 1 6 25 7 7 1 28 Power 8 | 1 1 . . . . 4 . . . 2 Engine 7 | 1 1 . . . . 4 . . . 1 Core 1 | . . . . . . . . . . 1 Reactor . | . . . . . . . . . . . Propulsion 28 | 2 1 . . . 3 4 3 3 1 11 Treads 12 | . . . . . . 4 3 3 1 1 Leg 6 | 2 1 . . . 3 . . . . . Wheel . | . . . . . . . . . . . Hover 3 | . . . . . . . . . . 3 Flight 7 | . . . . . . . . . . 7 Utility 27 | 1 2 . 1 . 2 8 3 2 . 8 Device 10 | . 1 . . . . 3 2 2 . 2 Storage 3 | 1 . . 1 . . 1 . . . . Processor 9 | . 1 . . . 1 2 . . . 5 Hackware 1 | . . . . . . 1 . . . . Protection 4 | . . . . . 1 1 1 . . 1 Artifact . | . . . . . . . . . . . Weapon 30 | 2 1 5 1 1 1 9 1 2 . 7 Energy Gun 4 | 1 . . . . . 2 . . . 1 Energy Cannon 2 | . . . . . . . . . . 2 Ballistic Gun 17 | 1 1 4 . . 1 4 . 2 . 4 Ballistic Cannon . | . . . . . . . . . . . Launcher 5 | . . 1 . 1 . 2 1 . . . Special Weapon . | . . . . . . . . . . . Impact Weapon 1 | . . . . . . 1 . . . . Slashing Weapon 1 | . . . 1 . . . . . . . Piercing Weapon . | . . . . . . . . . . . Special Melee Weapon . | . . . . . . . . . . . Unidentified Prototypes 8 | . . . . . 1 6 . . . 1 Parts Lost 32 | . . . . . 6 1 1 . 4 20 Power 4 | . . . . . 1 . . . 2 1 Propulsion 15 | . . . . . 4 . . . 2 9 Utility 9 | . . . . . . 1 1 . . 7 Weapon 4 | . . . . . 1 . . . . 3 Highest Loss Streak 11 | . . . . . 4 1 1 . 4 11 To Critical Strikes . | . . . . . . . . . . . Average Backups 17 | 2 5 8 8 9 17 20 24 24 17 4 Power . | . . . . . . . 1 1 . . Propulsion 6 | 1 3 4 4 4 8 6 8 8 6 . Utility 4 | . 1 3 2 2 2 3 6 8 7 1 Weapon 6 | . . 1 1 3 7 10 8 6 3 1 Tool/Special . | . . . . . . . . . . . Unused Backups 35 | . 2 . . . 1 8 6 3 12 3 Power 2 | . . . . . . 1 . . 1 . Propulsion 11 | . 2 . . . . 3 2 . 3 1 Utility 9 | . . . . . . 1 2 1 5 . Weapon 13 | . . . . . 1 3 2 2 3 2 Tool/Special . | . . . . . . . . . . . Average Slot Usage (%) 93 | . 97 100 100 99 91 97 99 99 74 53 Engine 8 | . 13 14 14 14 7 7 7 13 8 . Treads 23 | . . . . . . 35 38 39 27 4 Leg 8 | . 28 28 28 28 33 . . . . . Device 5 | . 3 . . . . 4 6 9 13 9 Storage 8 | . 14 14 14 14 9 9 7 6 3 . Processor 15 | . 8 14 14 14 14 18 15 13 13 16 Protection 3 | . . . . . 8 3 5 2 . . Ballistic Gun 8 | . 21 20 14 10 8 6 6 6 . 3 Launcher 1 | . . 7 6 3 . 1 . . 3 . Slashing Weapon 6 | . . . 7 14 9 9 7 6 4 . Peak Build Rating 62 | 6 7 7 14 16 27 43 53 62 59 43 Average Rating 35 | 4 6 7 10 15 22 38 50 60 43 28 On Entrance 21 | . 6 7 7 14 16 17 43 53 60 18 Naked Turns . | . . . . . . . . . . . Heaviest Build 111 | 11 12 12 47 50 50 94 102 111 108 22 Greatest Support 120 | 20 20 20 20 20 45 89 100 120 120 42 Greatest Overweight (x) 14 | . . . 2 2 14 1 1 . 1 4 Average Overweight (x) . | . . . . 2 1 . . . . . Largest Inventory Capacity 25 | 8 8 8 20 20 20 25 25 25 25 5 Average Capacity 18 | 7 8 8 10 20 20 21 25 25 17 5 Most Carried 25 | 3 8 8 8 11 20 25 25 25 25 5 Average Carried 17 | 2 5 8 7 9 18 20 24 24 17 4 Final Capacity 25 | 8 8 8 20 20 20 25 25 25 5 5 Final Carried 25 | 3 8 8 8 11 20 25 25 25 5 5 Class Distribution -------------------- 88% | Mutant 5% | Commander-Mutant Dominant Class ---------------- Mutant | -10/Materials Mutant | -10/Mines Mutant | -10/Exiles Mutant | -9/Mines Mutant | -8/Materials Mutant | -8/Storage Mutant | -7/Factory Mutant | -6/Factory Assassin | -6/Waste Mutant | -6/Factory Resources | -11 -10 -10 -10 -9 -8 -8 -7 -6 -6 -6 ----------- Run | Yrd Mat Min Exi Min Mat Sto Fac Fac Was Fac Matter Collected 1510 | 184 139 115 . 46 81 475 189 55 . 226 Remotely . | . . . . . . . . . . . Salvage Created 2511 | . 170 161 . . 85 1325 464 55 . 251 Parts 155 | . 4 15 . . 4 66 38 8 . 20 Haulers Intercepted 7 | . 1 . . . . 5 1 . . . Recyclers Shooed . | . . . . . . . . . . . Parts Field Recycled . | . . . . . . . . . . . Retrieved Matter . | . . . . . . . . . . . Parts Self-Destructed . | . . . . . . . . . . . Prevented . | . . . . . . . . . . . Kills | -11 -10 -10 -10 -9 -8 -8 -7 -6 -6 -6 ------- Run | Yrd Mat Min Exi Min Mat Sto Fac Fac Was Fac Combat Hostiles Destroyed 39 | . 2 12 . . . 13 3 1 . 8 Melee 17 | . . . . . . 12 3 1 . 1 Guns 8 | . 2 4 . . . . . . . 2 Cannons 5 | . . . . . . . . . . 5 AOE 8 | . . 8 . . . . . . . . Classes Destroyed 11 | . 3 2 . . 1 4 1 . . . Worker 13 | . . . . . 2 4 6 1 . . Builder 4 | . . . . . . 2 2 . . . Hauler 7 | . 1 . . . . 5 1 . . . Recycler 4 | . . 1 . . . 3 . . . . Operator 3 | . . . . . . 2 1 . . . Watcher 7 | . 1 . . . 1 2 3 . . . Swarmer 19 | . . 12 . . . . . . . 7 Grunt 6 | . 2 . . . . 4 . . . . Sentry 10 | . . . . . . 8 1 . . 1 Hunter 1 | . . . . . . 1 . . . . Programmer 3 | . . . . . . . 2 1 . . Best Kill Streak 4 | . 1 4 . . 2 4 4 1 . 3 Combat Bots Only 3 | . 1 3 . . . 2 1 1 . 3 Max Kills in Single Turn 2 | . 1 2 . . 1 1 2 1 . 1 Gunslinging 1 | . . 1 . . . . . . . . Exploded 2 | . . 2 . . . . . . . . Melee 1 | . . . . . . 1 1 1 . 1 Uniques/NPCs Destroyed . | . . . . . . . . . . . Combat | -11 -10 -10 -10 -9 -8 -8 -7 -6 -6 -6 -------- Run | Yrd Mat Min Exi Min Mat Sto Fac Fac Was Fac Hostile Shots Fired 586 | . 11 46 . . 80 66 59 4 4 316 Missed 219 | . 2 18 . . 19 24 22 2 . 132 Hits 367 | . 9 28 . . 61 42 37 2 4 184 Melee 4 | . . . . . . . . . 4 . Projectile 363 | . 9 28 . . 61 42 37 2 . 184 AOE 1 | . . . . . . 1 . . . . Critical Strikes 9 | . . . . . 4 1 . . 1 3 Actively Blocked 1 | . . . . . 1 . . . . . Damage Taken 5115 | . 114 237 . . 974 768 449 30 206 2337 Core 1313 | . 34 43 . . 295 63 26 . 52 800 Absorbed by Shields 36 | . . . . . . . . . . 36 Redirected to Shielding 50 | . . . . . 40 10 . . . . Core Remaining (%) 74 | 100 . . . 69 . 34 96 . . . Volleys Fired 86 | 1 17 14 . . 2 8 6 . 4 34 Largest 2 | 2 2 2 . . 1 1 1 . 1 2 Hottest 145 | 60 60 50 . . 23 61 39 . 39 145 Shots Fired 131 | 2 34 28 . . 2 11 6 . 4 44 Gun 99 | 2 34 21 . . 2 7 5 . . 28 Cannon 16 | . . . . . . . . . . 16 Launcher 16 | . . 7 . . . 4 1 . 4 . Special . | . . . . . . . . . . . Kinetic 75 | 1 17 21 . . 2 3 5 . . 26 Thermal 20 | . . . . . . 4 . . . 16 Explosive 16 | . . 7 . . . 4 1 . 4 . Electromagnetic 20 | 1 17 . . . . . . . . 2 Robot Hit Streak 15 | . 15 6 . . 2 5 1 . 4 7 Robot Miss Streak 5 | 2 3 5 . . 1 2 3 . . 4 Penetration Max . | . . . . . . . . . . . Secondary Targets 2 | . . 2 . . . . . . . . Max Gunslinging Chain 1 | . . 1 . . . . . . . . Shots Hit Robots 162 | . 26 8 . . 3 59 31 5 3 27 Core Hits 82 | . 8 17 . . 2 27 13 1 1 13 Critical Kills . | . . . . . . . . . . . Critical Parts Destroyed 2 | . 1 . . . . 1 . . . . Critical Strikes 12 | . 1 . . . . 6 4 1 . . Destroy 1 | . 1 . . . . . . . . . Smash 1 | . . . . . . 1 . . . . Sever 10 | . . . . . . 5 4 1 . . Melee Attacks 136 | . . . . . 4 71 53 8 . . Impact 5 | . . . . . . 5 . . . . Slashing 131 | . . . . . 4 66 53 8 . . Piercing . | . . . . . . . . . . . Sneak Attacks 30 | . . . . . 2 17 10 1 . . Combat Hostiles . | . . . . . . . . . . . Follow-up Attacks 1 | . . . . . . 1 . . . . Damage Inflicted 8479 | . 330 611 . . 177 3369 2036 289 996 671 Guns 740 | . 293 65 . . 14 56 28 . . 284 Cannons 384 | . . . . . . . . . . 384 Explosions 1926 | . 31 546 . . . 70 283 . 996 . Melee 5412 | . . . . . 163 3235 1725 289 . . Ramming 17 | . 6 . . . . 8 . . . 3 Kinetic 533 | . 116 65 . . 14 36 28 . . 274 Thermal 661 | . 31 . . . . 20 226 . . 384 Explosive 1669 | . . 546 . . . 70 57 . 996 . Electromagnetic 187 | . 177 . . . . . . . . 10 Impact 211 | . . . . . . 211 . . . . Slashing 5201 | . . . . . 163 3024 1725 289 . . Piercing . | . . . . . . . . . . . Highest Corruption 18 | . . . . . 2 2 1 . 18 18 Average Corruption 5 | . . . . . 2 2 1 . 13 16 Corruption Purged . | . . . . . . . . . . . Corruption Blocked . | . . . . . . . . . . . Effects 76 | . . . . . 2 31 1 . 8 34 Message Errors 17 | . . . . . . 6 . . 1 10 Matter Fused 16 | . . . . . 1 6 . . . 9 Heat Flow Errors 12 | . . . . . 1 5 . . 1 5 Energy Discharges 8 | . . . . . . 5 . . 3 . Parts Fused 1 | . . . . . . . . . 1 . Data Loss (minor) 9 | . . . . . . 3 1 . . 5 Data Loss (major) 3 | . . . . . . 2 . . 1 . Misfires 3 | . . . . . . 3 . . . . Alerts 2 | . . . . . . 1 . . . 1 Misdirections 2 | . . . . . . . . . 1 1 Weapon Failures 3 | . . . . . . . . . . 3 Overload Shots . | . . . . . . . . . . . Overflow Damage 987 | . . 38 . . 46 427 419 50 . 7 Projectiles 7 | . . . . . . . . . . 7 Explosions 153 | . . 38 . . . 5 110 . . . Melee 827 | . . . . . 46 422 309 50 . . Knockbacks . | . . . . . . . . . . . Impact . | . . . . . . . . . . . Kinetic . | . . . . . . . . . . . Secondary . | . . . . . . . . . . . Self-Inflicted Damage 60 | . . 11 . . . 48 . . . 1 Shots 3 | . . 1 . . . 2 . . . . Rammed 4 | . . . . . . 2 . . . 2 Targets Rammed 6 | . 2 . . . . 2 . . . 2 Kicked 2 | . 2 . . . . . . . . . Crushed . | . . . . . . . . . . . Highest Temperature 270 | 20 38 20 . . 249 270 . . 131 228 Average Temperature 68 | 15 20 8 . . 101 105 . . 72 51 Received Heat Transfer 1284 | . 63 . . . 531 189 120 . . 381 Effects 1 | . . . . . . . . . . 1 Interference 1 | . . . . . . . . . . 1 Siege Activations . | . . . . . . . . . . . Martial Activations . | . . . . . . . . . . . Shielding Activations . | . . . . . . . . . . . Robots Disrupted . | . . . . . . . . . . . Combat Hostiles . | . . . . . . . . . . . Robots Corrupted 1 | . . . . . . 1 . . . . Combat Hostiles 1 | . . . . . . 1 . . . . Parts Fried 2 | . 1 . . . . 1 . . . . Impact Corruptions 2 | . . . . . . 2 . . . . Robots Melted . | . . . . . . . . . . . Combat Hostiles . | . . . . . . . . . . . Parts Melted . | . . . . . . . . . . . Heat Transferred 837 | . 50 . . . . 37 150 . . 600 Parts Sabotaged . | . . . . . . . . . . . Parts Stolen . | . . . . . . . . . . . Parts Stripped . | . . . . . . . . . . . Power Chain Reactions 1 | . 1 . . . . . . . . . Alert | -11 -10 -10 -10 -9 -8 -8 -7 -6 -6 -6 ------- Run | Yrd Mat Min Exi Min Mat Sto Fac Fac Was Fac Maximum Alert Level 2 | . . . . . . 2 1 . . . Low Security (%) 78 | 100 100 100 . 100 100 61 45 100 100 100 Level 1 16 | . . . . . . 18 54 . . . Level 2 5 | . . . . . . 19 . . . . Level 3 . | . . . . . . . . . . . Level 4 . | . . . . . . . . . . . Level 5 . | . . . . . . . . . . . High Security . | . . . . . . . . . . . Max Security . | . . . . . . . . . . . Peak Influence 591 | . 48 192 . . 33 591 267 106 18 131 Initial 267 | . . 5 . . . . 267 106 . . Average 96 | . 7 97 . . 1 182 172 12 1 41 Influence Increases 2708 | . 107 347 . . 67 1186 501 54 28 418 Destroy 0b10 Robot/C 1100 | . 40 240 . . 20 560 60 20 . 160 Destroy 0b10 Robot/NC 190 | . 10 5 . . 15 90 65 5 . . Destroy Leader 338 | . 4 40 . . 12 204 38 10 . 30 Allied During Kill 167 | . . . . . 3 164 . . . . Successful Hack 58 | . 5 . . . . 23 28 2 . . Disable Machine 330 | . . . . . . 90 225 15 . . Destroy Structure 165 | . 3 32 . . 2 40 55 2 28 3 Partial Spotted 15 | . . . . . . . . . . 15 Lose Combat Pursuer 345 | . 45 30 . . 15 15 30 . . 210 Influence Decreases 2642 | . 93 189 172 . 67 598 871 272 28 352 Entered New Map 614 | . . 9 172 . . . 321 112 . . Time Decay 1652 | . 93 180 . . 37 418 540 160 18 206 Lost Part 171 | . . . . . 5 . 10 . 10 146 Lost Ally 205 | . . . . . 25 180 . . . . Squads Dispatched 25 | . . . . . 3 9 3 2 . 8 Investigation 2 | . . . . . . 1 . . . 1 Extermination 7 | . . . . . . . 3 2 . 2 Reinforcement 4 | . . . . . 1 1 . . . 2 Assault 1 | . . . . . . 1 . . . . Garrison 11 | . . . . . 2 6 . . . 3 Intercept . | . . . . . . . . . . . Searches Triggered . | . . . . . . . . . . . Construction Impeded . | . . . . . . . . . . . Haulers Reinforced . | . . . . . . . . . . . Active Scanning Responses . | . . . . . . . . . . . Cargo Convoy Interrupts . | . . . . . . . . . . . Stealth | -11 -10 -10 -10 -9 -8 -8 -7 -6 -6 -6 --------- Run | Yrd Mat Min Exi Min Mat Sto Fac Fac Was Fac Distress Signals 3 | . . . . . 1 1 . . . 1 Communications Jammed . | . . . . . . . . . . . Distress Signals . | . . . . . . . . . . . Times Spotted 128 | . 6 13 . . 16 40 12 2 6 33 Peak Tracking Total 12 | . 2 3 . . 12 6 3 1 6 9 Tactical Retreats 12 | . 2 1 . . 1 1 1 . . 6 Traps | -11 -10 -10 -10 -9 -8 -8 -7 -6 -6 -6 ------- Run | Yrd Mat Min Exi Min Mat Sto Fac Fac Was Fac Traps Triggered 11 | . 2 . . . 1 1 3 1 . 3 Indirectly . | . . . . . . . . . . . Trap Hack Attempts . | . . . . . . . . . . . Triggered . | . . . . . . . . . . . Disarmed . | . . . . . . . . . . . Reprogrammed . | . . . . . . . . . . . Reused . | . . . . . . . . . . . Traps Extracted . | . . . . . . . . . . . Installed . | . . . . . . . . . . . Triggered . | . . . . . . . . . . . Machines | -11 -10 -10 -10 -9 -8 -8 -7 -6 -6 -6 ---------- Run | Yrd Mat Min Exi Min Mat Sto Fac Fac Was Fac Machines Disabled 22 | . . . . . . 6 15 1 . . Max in Single Turn 15 | . . . . . . 1 15 1 . . Machines Repaired . | . . . . . . . . . . . Machines Dismantled . | . . . . . . . . . . . Machines Sabotaged . | . . . . . . . . . . . Overloaded Fab Kills . | . . . . . . . . . . . Hacking | -11 -10 -10 -10 -9 -8 -8 -7 -6 -6 -6 --------- Run | Yrd Mat Min Exi Min Mat Sto Fac Fac Was Fac Machines Accessed 19 | . 1 . 2 1 3 6 3 2 . 1 Terminals 13 | . 1 . . 1 2 6 2 . . 1 Fabricators 1 | . . . . . . . . 1 . . Repair Stations . | . . . . . . . . . . . Recycling Units . | . . . . . . . . . . . Scanalyzers 2 | . . . . . . . 1 1 . . Garrison Access 1 | . . . . . 1 . . . . . Total Hacks 45 | . 3 . 2 2 6 17 7 4 . 4 Successful 23 | . 1 . 2 1 1 12 3 2 . 1 Failed 22 | . 2 . . 1 5 5 4 2 . 3 Catastrophic 5 | . 1 . . . 1 2 1 . . . Database Lockouts . | . . . . . . . . . . . Manual 15 | . 3 . 1 . 2 6 3 . . . Terminals 34 | . 3 . . 2 5 17 3 . . 4 Fabricators 2 | . . . . . . . . 2 . . Repair Stations . | . . . . . . . . . . . Recycling Units . | . . . . . . . . . . . Scanalyzers 6 | . . . . . . . 4 2 . . Garrison Access 1 | . . . . . 1 . . . . . Terminal Hacks 15 | . . . 2 1 1 10 . . . 1 Record 3 | . . . 1 . . 2 . . . . Robot Analysis 4 | . . . . . . 4 . . . . Prototype ID Bank 1 | . . . . . . 1 . . . . Open DSF 1 | . . . . . . . . . . 1 Level Access Points 1 | . . . . . . 1 . . . . Terminal Index 2 | . . . . . 1 1 . . . . Alert Level 1 | . . . . . . 1 . . . . Patrol Status 1 | . . . . 1 . . . . . . Proto ID Catalog 1 | . . . 1 . . . . . . . Fabricator Hacks . | . . . . . . . . . . . Repair Station Hacks . | . . . . . . . . . . . Recycling Unit Hacks . | . . . . . . . . . . . Scanalyzer 5 | . . . . . . . 3 2 . . Insert Component 3 | . . . . . . . 2 1 . . Analyze 2 | . . . . . . . 1 1 . . Garrison Access Hacks . | . . . . . . . . . . . Unauthorized Hacks 3 | . 1 . . . . 2 . . . . Terminals 3 | . 1 . . . . 2 . . . . Botnet 3 | . 1 . . . . 2 . . . . Fabricators . | . . . . . . . . . . . Repair Stations . | . . . . . . . . . . . Recycling Units . | . . . . . . . . . . . Scanalyzers . | . . . . . . . . . . . Garrison Access . | . . . . . . . . . . . Data Cores Recovered 1 | . . . . . . 1 . . . . Used . | . . . . . . . . . . . Hacking Detections 14 | . 1 . . . 3 5 2 2 . 1 Full Trace Events 3 | . 1 . . . . 1 . . . 1 Feedback Events . | . . . . . . . . . . . Feedback Blocked . | . . . . . . . . . . . Robot Schematics Acquired . | . . . . . . . . . . . Robots Built . | . . . . . . . . . . . Authchips . | . . . . . . . . . . . Time . | . . . . . . . . . . . Total Robot Build Rating . | . . . . . . . . . . . Part Schematics Acquired 1 | . . . . . . . 1 . . . Parts Built . | . . . . . . . . . . . Authchips . | . . . . . . . . . . . Time . | . . . . . . . . . . . Total Part Build Rating . | . . . . . . . . . . . Parts Repaired . | . . . . . . . . . . . Time . | . . . . . . . . . . . Parts Recycled . | . . . . . . . . . . . Recycled Matter . | . . . . . . . . . . . Retrieved Matter . | . . . . . . . . . . . Retrieved Components . | . . . . . . . . . . . Parts Scanalyzed 3 | . . . . . . . 2 1 . . Part Schematics Acquired 1 | . . . . . . . 1 . . . Parts Damaged . | . . . . . . . . . . . Bothacking | -11 -10 -10 -10 -9 -8 -8 -7 -6 -6 -6 ------------ Run | Yrd Mat Min Exi Min Mat Sto Fac Fac Was Fac Used RIF Installer . | . . . . . . . . . . . Robots Hacked . | . . . . . . . . . . . Non-combat . | . . . . . . . . . . . Combat . | . . . . . . . . . . . Robot Hacks Applied . | . . . . . . . . . . . Relay Couplers Released . | . . . . . . . . . . . Fabnet Peak Effective % . | . . . . . . . . . . . Robots Rewired . | . . . . . . . . . . . Allies Hacked . | . . . . . . . . . . . Hacks Repelled . | . . . . . . . . . . . Allies | -11 -10 -10 -10 -9 -8 -8 -7 -6 -6 -6 -------- Run | Yrd Mat Min Exi Min Mat Sto Fac Fac Was Fac Total Allies 13 | . . . . 3 . 10 . . . . Largest Group 10 | . . . . 3 2 10 . . . . Highest-Rated Group 173 | . . . . 40 24 173 . . . . Highest-Rated Ally 29 | . . . . 16 16 29 . . . . Total Orders 9 | . . . . 1 . . . 8 . . ROAM 3 | . . . . 1 . . . 2 . . EXPLORE 2 | . . . . . . . . 2 . . RETURN 4 | . . . . . . . . 4 . . Ally Attacks 139 | . . . . . 25 114 . . . . Total Damage 1509 | . . . . . 263 1246 . . . . Kills 16 | . . . . . 1 15 . . . . Allies Corrupted . | . . . . . . . . . . . Allies Melted 1 | . . . . . 1 . . . . . Intel | -11 -10 -10 -10 -9 -8 -8 -7 -6 -6 -6 ------- Run | Yrd Mat Min Exi Min Mat Sto Fac Fac Was Fac Active Infowar (turns) 5414 | . . . . . 410 2021 1677 1060 183 63 Optics 5363 | . . . . . 410 2021 1677 1060 183 12 Sensors 219 | . . . . . . . . 34 183 2 Jamming 2720 | . . . . . . . 1456 1060 149 55 ECM 22 | . . . . . . . 19 . . 3 Robot Analysis Total 4 | . . . . . . 4 . . . . Derelict Logs Recovered 1 | . . 1 . . . . . . . . Drone Launches 4 | . . . . . . . . 4 . . Drone Recoveries 2 | . . . . . . . . 2 . . Exploration | -11 -10 -10 -10 -9 -8 -8 -7 -6 -6 -6 ------------- Run | Yrd Mat Min Exi Min Mat Sto Fac Fac Was Fac Turns Passed 8105 | 69 502 371 350 472 627 2021 1677 1060 183 773 Spaces Moved 4320 | 49 360 252 254 176 304 786 724 485 100 830 Core 106 | 6 . . . . 2 . . . . 98 Treads 2243 | . . . . . . 786 724 485 100 148 Legs 1387 | 43 360 252 254 176 302 . . . . . Wheels . | . . . . . . . . . . . Hover . | . . . . . . . . . . . Flight 584 | . . . . . . . . . . 584 Fastest Speed 32 | 50 120 120 120 260 190 170 170 170 170 32 Average Speed 149 | 111 120 120 136 260 196 192 170 170 172 61 Slowest Speed 750 | 120 120 120 260 260 750 250 250 170 250 315 Overloaded Moves . | . . . . . . . . . . . Propulsion Burnouts . | . . . . . . . . . . . Robots Hopped 3 | . . . . . . . . . . 3 Potential Cave-ins 1 | . . . . . . 1 . . . . Cave-ins Triggered . | . . . . . . . . . . . Exploration Rate (%) 43 | 3 38 68 61 41 31 82 21 21 88 29 Regions Visited 10 Branch Regions 4 Pre-discovered Areas 1 | . . . 1 . . . . . . . Known Exits Taken 7 | . 1 1 1 1 1 1 1 . . . Unknown Exits Taken 1 | 1 . . . . . . . . . . Scrap Searched 1 | . . . . 1 . . . . . . Spaces Dug 39 | . . . . . 2 10 24 2 . 1 Terrain Destroyed 209 | . 2 34 . . 2 42 79 2 45 3 Melee 38 | . . . . . 2 10 24 2 . . Projectile 3 | . . . . . . . . . . 3 AOE 168 | . 2 34 . . . 32 55 . 45 . Terrain Rammed . | . . . . . . . . . . . Walls Destroyed . | . . . . . . . . . . . Machines Disabled . | . . . . . . . . . . . Actions | -11 -10 -10 -10 -9 -8 -8 -7 -6 -6 -6 --------- Run | Yrd Mat Min Exi Min Mat Sto Fac Fac Was Fac Total 5718 | 58 400 298 259 192 334 1207 1108 715 106 1041 Wait 892 | . 4 24 1 13 1 269 279 199 1 101 Move 4305 | 48 359 251 253 175 303 785 723 485 99 824 Hop 3 | . . . . . . . . . . 3 Pick Up 73 | 3 8 . 1 2 14 19 14 7 . 5 Fast Attach 41 | 6 3 . . 1 1 4 3 1 . 22 Attach 23 | . 2 . . . 3 7 3 2 1 5 Detach 7 | . 2 . . 1 . 1 . . . 3 Swap 61 | . . 5 2 . 3 26 13 6 1 5 Drop 59 | . 3 4 2 . 3 15 14 7 . 11 Fire 86 | 1 17 14 . . 2 8 6 . 4 34 Melee 134 | . . . . . 4 69 53 8 . . Ram 2 | . . . . . . . . . . 2 Kick 2 | . 2 . . . . . . . . . Crush 2 | . . . . . . 2 . . . . Escape Stasis 28 | . . . . . . 2 . . . 26 Rewire . | . . . . . . . . . . . Trap . | . . . . . . . . . . . Miscellaneous . | . . . . . . . . . . . Route ------- -11/Scrapyard -10/Materials (discovered 2 exits: *Min / *Sub) -10/Mines (discovered 3 exits: *Mat x2 / *Exi) -10/Exiles -9/Mines (discovered 2 exits: *Mat x2) -8/Materials (discovered 2 exits: Fac / *Sto) -8/Storage -7/Factory (discovered 2 exits: *Fac / *Low) -6/Factory -6/Waste -6/Factory History --------- Turn | Location | Event 12 | -11/Scrapyard | Discovered new exit (range 15) 70 | -11/Scrapyard | Entered Materials 260 | -10/Materials | Discovered new exit (range 15) 302 | -10/Materials | Identified exit to Mines 311 | -10/Materials | Build established: Mutant 438 | -10/Materials | Discovered new exit (range 7) 444 | -10/Materials | Identified exit to Subcaves 572 | -10/Materials | Entered Mines 610 | -10/Mines | Learned 4 Materials zone layouts 652 | -10/Mines | Discovered new exit (range 6) 657 | -10/Mines | Identified exit to Materials 814 | -10/Mines | Discovered exit to Materials (range 6) 937 | -10/Mines | Deemed a non-threat by the Exiles lab entrance 938 | -10/Mines | Discovered new exit (range 5) 942 | -10/Mines | Identified exit to Exiles 943 | -10/Mines | Entered Exiles 971 | -10/Exiles | Met 8R-AWN 993 | -10/Exiles | Met EX-HEX 1026 | -10/Exiles | Met EX-BIN 1053 | -10/Exiles | Aligned with FarCom system 1054 | -10/Exiles | Given EX-Vault access code 1084 | -10/Exiles | Opened EX-Vault 1098 | -10/Exiles | Found Longsword +1 1125 | -10/Exiles | Warned to stay clear of 0b10 Research branches 1163 | -10/Exiles | Met EX-DEC 1179 | -10/Exiles | Learned location of Zion (-6) 1272 | -10/Exiles | Discovered new exit (range 10) 1291 | -10/Exiles | Identified exit to Mines 1293 | -10/Exiles | Left Exiles lab with Longsword +1 1293 | -10/Exiles | Entered Mines 1306 | -9/Mines | Assisted by bots powering up and referring to "LRC-V3" 1594 | -9/Mines | Discovered new exit (range 12) 1618 | -9/Mines | Identified exit to Materials 1643 | -9/Mines | Received a Rocket Launcher from a helpful Derelict 1724 | -9/Mines | Discovered exit to Materials (range 13) 1765 | -9/Mines | Entered Materials 1765 | -8/Materials | Accompanied by 2 allies 1765 | -8/Materials | Evolved 4 slots: Propulsion x2, Utility x2 1766 | -8/Materials | Identified exit to Storage 1766 | -8/Materials | Identified exit to Factory 2267 | -8/Materials | Garrison activated, responded to threat 2392 | -8/Materials | Entered Storage 2393 | -8/Storage | Core integrity fell below 50% 2414 | -8/Storage | Lost 4 parts (3n1w) 3537 | -8/Storage | Assisted by bots powering up and referring to "LRC-V3" 3606 | -8/Storage | Garrison activated, responded to threat 3670 | -8/Storage | Lost 4 allies 3830 | -8/Storage | Build established: Commander-Mutant 4010 | -8/Storage | Garrison activated, responded to threat 4268 | -8/Storage | Build established: Mutant 4392 | -8/Storage | First assault squad dispatched 4413 | -8/Storage | Entered Factory 4413 | -7/Factory | Evolved 2 slots: Propulsion x1, Utility x1 4738 | -7/Factory | Discovered new exit (range 11) 4755 | -7/Factory | Identified exit to Lower Caves 5947 | -7/Factory | Discovered new exit (range 20) 6088 | -7/Factory | Identified exit to Factory 6090 | -7/Factory | Entered another Factory area 6090 | -6/Factory | Evolved 2 slots: Power x1, Propulsion x1 6636 | -6/Factory | Discovered new exit (range 64) 6936 | -6/Factory | Identified exit to Lower Caves 7150 | -6/Factory | Sucked down chute 7150 | -6/Factory | Entered Waste 7165 | -6/Waste | EMP discharged 7165 | -6/Waste | System corruption reached 10% 7196 | -6/Waste | Spotted C-40 Crusher 7203 | -6/Waste | Spotted C-40 Crusher 7219 | -6/Waste | Spotted C-40 Crusher 7221 | -6/Waste | Spotted C-40 Crusher 7221 | -6/Waste | Spotted C-40 Crusher 7229 | -6/Waste | Spotted C-40 Crusher 7240 | -6/Waste | Crushed by Compactor (1 part destroyed, 2 dropped) 7255 | -6/Waste | Crushed by Compactor (1 part destroyed, 2 dropped) 7261 | -6/Waste | Crushed by Compactor (1 part destroyed, 1 dropped) 7265 | -6/Waste | EMP discharged 7283 | -6/Waste | Crushed by Compactor (1 part destroyed, 2 dropped) 7300 | -6/Waste | Discovered new exit (range 20) 7314 | -6/Waste | Lost 4 parts (2p2n) 7331 | -6/Waste | Identified exit to Factory 7333 | -6/Waste | Entered Factory 7572 | -6/Factory | Garrison activated, responded to threat 7745 | -6/Factory | Lost 4 parts (1p2n1u) 7851 | -6/Factory | Lost 11 parts (5n4u2w) 7868 | -6/Factory | Core integrity fell below 50% 7957 | -6/Factory | Core integrity fell below 20% 8106 | -6/Factory | Destroyed by P-60 Hacker with Shock Rifle Last Messages --------------- 08067_ VTOL Module destroyed. 08075_ K-01 Serf cleans the Subcomponent Replicator. 08087_ System corrupted: Matter fused (-5). 08092_ Triggered Stasis Trap. 08092_ A bubble of rippling energy engulfs the area. 08092_ Field strength at 95. 08092_ Field strength at 90. 08093_ Field strength at 85. 08094_ Field strength at 80. 08095_ Field strength at 75. 08096_ Field strength at 70. 08097_ Field strength at 65. 08098_ Field strength at 60. 08099_ Field strength at 55. 08100_ Field strength at 42. 08101_ Field strength at 37. 08102_ Field strength at 32. 08103_ Field strength at 23. 08104_ Field strength at 18. 08105_ Field strength at 13. Map ----- +----------------------------------------------------+ | ????????????????????????????????? | | ????????????????????????????????? | | ????????????????????????????????? | | ????????????????????????????????? | | ????????????????????????????????? | | ????????????????????????????????? | | ????????????????????????????????? | | ????????????????????????????????? | | ????????????????????????????????? | | ????????????????????????????????? | | ????????????????????????????????? | | ????????????????????????????????? | | ????????????????????????????????? | | ?????????????????????#######+#+## | | ????????????????????? | | ?????????????????????????# | | ?????????????????????????# | | ????######???##########??# | | ????# #???# | | ????# #???# p#?####### #### | | ????# ##### #########+#### | | ????# + """ # | | ????# # "R" # | | ????# # " " + | | ????# + # | | ???# #@########### """" """" # | | ???# " # #?????????# """" """" # | | ???# ?# #?????????# """" """" # | | ???##??#+#?????????# """" """" # | | ???????????????????# """" """" # | | ???????????????????# """" """" # | | ???????????????????# """" ""?" + | | ???????????????????# ? # | | ???????????????????#####?###??### | | ????????????????????????????????? | | ????????????????????????????????? | | ????????????????????????????????? | | ????????????????????????????????? | | ????????????????????????????????? | | ????????????????????????????????? | | ????????????????????????????????? | | ????????????????????????????????? | | ????????????????????????????????? | | ????????????????????????????????? | | ????????????????????????????????? | | ????????????????????????????????? | | ????????????????????????????????? | | ????????????????????????????????? | | ????????????????????????????????? | | ????????????????????????????????? | +----------------------------------------------------+ Best States ------------- Heat Dissipation 37 Energy Generation 23 Energy Capacity 460 Matter Stores 300 Matter Capacity 300 Sight Range 20 Robot Scan Range 15 Terrain Scan Density 10 ECM Strength 2 Jamming Range 12 Additional Mass Support 9 Corruption Containment 16 Armor Coverage 150 Utility Shielding 33 Evasion (%) 63 Targeting Accuracy 6 Recoil Reduction 6 Offensive Hacking 10 Item Schematics ----------------- Arm. Treads | -7/Factory | Scanalyzed Robot Schematics ------------------ None Fabricated ------------ Nothing Repaired ---------- Nothing Alien Tech Used ----------------- None Achievements -------------- It Was An Accident, I Swear Challenges ------------ None Game ------ Seed GuidanceTeleporterCloak Manual? 0 Play Time 01:38:49 Cumulative 68.2 hours Start 2025.09.25 @ 05:59:28 End 2025.09.25 @ 07:42:27 Sessions 5 Manual Loads 0 Difficulty Rogue Special Mode None Game No. 74 Rogue 74 Adventurer 0 Explorer 0 Win Type - Total 0 Types 0/0/0/0/0/0/0/0/0/0 Lore% 20 Gallery% 33 Achievement% 29 Wizard Run 0 Options --------- Layout 1 ASCII 0 Keyboard 1 Movement Numpad Keybinds 0 Fullscreen 1 Font 32/SmallcapsGlow Map View 77x35 Zoom Use 0% Tactical HUD 1 Map Filters NONE Filters NONE Steam 1 RUN: 332bedb7-a14c-4e8a-88f7-95b574a20598